[Event "*** MasterClass Titled Tuesday Blitz"]
[Site "Chess.com"]
[Date "2017.10.03"]
[Round "1"]
[White "mazetofonias"]
[Black "Makalexa"]
[Result "1-0"]
[WhiteElo "2487"]
[BlackElo "2159"]
[TimeControl "180+2"]
[EndTime "13:08:09 PDT"]
[Termination "mazetofonias won on time"]

1. e4 {[%clk 0:03:00.8]} 1... e5 {[%clk 0:02:59.3]} 2. Nf3 {[%clk 0:03:00.7]}
2... Nc6 {[%clk 0:03:00.3]} 3. Bc4 {[%clk 0:03:01.3]} 3... Bc5 {[%clk
0:03:01.2]} 4. c3 {[%clk 0:03:01.3]} 4... Nf6 {[%clk 0:03:02.3]} 5. d3 {[%clk
0:02:53.6]} 5... O-O {[%clk 0:03:01.2]} 6. Bb3 {[%clk 0:02:54.1]} 6... d6 {[%clk
0:02:57]} 7. Nbd2 {[%clk 0:02:54.4]} 7... Ne7 {[%clk 0:02:57.5]} 8. h3 {[%clk
0:02:44.2]} 8... Ng6 {[%clk 0:02:56.9]} 9. d4 {[%clk 0:02:45.3]} 9... Bb6 {[%clk
0:02:55]} 10. O-O {[%clk 0:02:43.8]} 10... a6 {[%clk 0:02:53.7]} 11. Re1 {[%clk
0:02:43.6]} 11... Qe7 {[%clk 0:02:46.7]} 12. Nc4 {[%clk 0:02:43.6]} 12... Ba7
{[%clk 0:02:41]} 13. a4 {[%clk 0:02:43.9]} 13... h6 {[%clk 0:02:41]} 14. a5
{[%clk 0:02:43.9]} 14... Be6 {[%clk 0:02:30.4]} 15. Qc2 {[%clk 0:02:13]} 15...
Nh5 {[%clk 0:02:14.7]} 16. Ne3 {[%clk 0:02:12.7]} 16... Nhf4 {[%clk 0:01:57.8]}
17. Nf5 {[%clk 0:02:03.7]} 17... Qf6 {[%clk 0:01:58.1]} 18. Be3 {[%clk
0:01:54.1]} 18... Bxf5 {[%clk 0:01:46.7]} 19. exf5 {[%clk 0:01:53.5]} 19... Nh4
{[%clk 0:01:47]} 20. Nxh4 {[%clk 0:01:44.5]} 20... Qxh4 {[%clk 0:01:43.7]} 21.
dxe5 {[%clk 0:01:37]} 21... dxe5 {[%clk 0:01:17.3]} 22. Bxa7 {[%clk 0:01:36.5]}
22... Qg5 {[%clk 0:00:59.1]} 23. g3 {[%clk 0:01:33.9]} 23... Rxa7 {[%clk
0:00:59.2]} 24. Rxe5 {[%clk 0:01:24.8]} 24... Nxh3+ {[%clk 0:00:55]} 25. Kf1
{[%clk 0:01:25.2]} 25... Rd8 {[%clk 0:00:53.5]} 26. Rd1 {[%clk 0:01:22.7]} 26...
Raa8 {[%clk 0:00:52.4]} 27. Red5 {[%clk 0:01:13]} 27... Rxd5 {[%clk 0:00:46.8]}
28. Rxd5 {[%clk 0:01:14.9]} 28... Re8 {[%clk 0:00:45.1]} 29. Qd2 {[%clk
0:01:08.3]} 29... Qf6 {[%clk 0:00:30.9]} 30. Rd7 {[%clk 0:01:04.4]} 30... Rf8
{[%clk 0:00:26.2]} 31. Qd5 {[%clk 0:00:59.8]} 31... c6 {[%clk 0:00:22.4]} 32.
Qd3 {[%clk 0:00:59.3]} 32... Qg5 {[%clk 0:00:18.5]} 33. Rxb7 {[%clk 0:00:29]}
1-0

[Event "*** MasterClass Titled Tuesday Blitz"]
[Site "Chess.com"]
[Date "2017.10.03"]
[Round "1"]
[White "eldur16"]
[Black "roldieyi"]
[Result "1-0"]
[WhiteElo "2479"]
[BlackElo "2136"]
[TimeControl "180+2"]
[EndTime "13:08:13 PDT"]
[Termination "eldur16 won on time"]

1. c4 {[%clk 0:03:01.9]} 1... Nf6 {[%clk 0:02:59.6]} 2. Nf3 {[%clk 0:02:59.5]}
2... e6 {[%clk 0:02:56.6]} 3. Nc3 {[%clk 0:02:59.5]} 3... d5 {[%clk 0:02:57.4]}
4. d4 {[%clk 0:02:59.8]} 4... Be7 {[%clk 0:02:57.2]} 5. Bg5 {[%clk 0:02:59.9]}
5... O-O {[%clk 0:02:57.4]} 6. e3 {[%clk 0:03:00.9]} 6... a6 {[%clk 0:02:57.9]}
7. Rc1 {[%clk 0:03:00.2]} 7... Nbd7 {[%clk 0:02:45.9]} 8. cxd5 {[%clk 0:03:01]}
8... exd5 {[%clk 0:02:45.1]} 9. Bd3 {[%clk 0:03:01.7]} 9... b5 {[%clk
0:02:44.4]} 10. O-O {[%clk 0:03:02.1]} 10... Bb7 {[%clk 0:02:30.3]} 11. a3
{[%clk 0:03:02.3]} 11... Rc8 {[%clk 0:02:14.2]} 12. b4 {[%clk 0:03:01.2]} 12...
g6 {[%clk 0:02:09.5]} 13. Bb1 {[%clk 0:03:00.9]} 13... Ne4 {[%clk 0:02:08.7]}
14. Nxe4 {[%clk 0:02:48.7]} 14... dxe4 {[%clk 0:01:59.8]} 15. Bxe7 {[%clk
0:02:49.2]} 15... Qxe7 {[%clk 0:02:01.1]} 16. Nd2 {[%clk 0:02:50.1]} 16... Nf6
{[%clk 0:01:59.8]} 17. Rc5 {[%clk 0:02:48.4]} 17... Rfe8 {[%clk 0:01:53.6]} 18.
Qb3 {[%clk 0:02:43.5]} 18... Qd6 {[%clk 0:01:50.1]} 19. h3 {[%clk 0:02:41.2]}
19... Bd5 {[%clk 0:01:49]} 20. Qb2 {[%clk 0:02:38.4]} 20... c6 {[%clk
0:01:47.4]} 21. Rfc1 {[%clk 0:02:35.4]} 21... Rcd8 {[%clk 0:01:43.5]} 22. Ba2
{[%clk 0:02:35]} 22... Nd7 {[%clk 0:01:28]} 23. R5c2 {[%clk 0:02:22.9]} 23...
Nf6 {[%clk 0:01:00.1]} 24. Bxd5 {[%clk 0:02:18.4]} 24... cxd5 {[%clk 0:01:01.5]}
25. Rc6 {[%clk 0:02:16.8]} 25... Qe7 {[%clk 0:01:02.6]} 26. Rxa6 {[%clk
0:02:15.4]} 26... Rc8 {[%clk 0:01:03.5]} 27. Rc5 {[%clk 0:02:10.4]} 27... Rb8
{[%clk 0:00:55.2]} 28. Rac6 {[%clk 0:02:08]} 28... Red8 {[%clk 0:00:48.5]} 29.
Qc1 {[%clk 0:01:55.8]} 29... Kg7 {[%clk 0:00:39.6]} 30. Qf1 {[%clk 0:01:54.6]}
30... Qb7 {[%clk 0:00:37.5]} 31. f3 {[%clk 0:01:46.3]} 31... Rdc8 {[%clk
0:00:17.7]} 32. Rxc8 {[%clk 0:01:40.3]} 32... Rxc8 {[%clk 0:00:19.1]} 33. fxe4
{[%clk 0:01:31.7]} 33... dxe4 {[%clk 0:00:16.3]} 34. Qf4 {[%clk 0:01:26.9]}
34... Rxc5 {[%clk 0:00:09.5]} 35. bxc5 {[%clk 0:01:25.8]} 35... Qd5 {[%clk
0:00:11.2]} 36. Kh2 {[%clk 0:01:18]} 36... g5 {[%clk 0:00:06.8]} 37. Qe5 {[%clk
0:01:17]} 37... Qc6 {[%clk 0:00:07.9]} 38. Nf1 {[%clk 0:01:13.7]} 38... Kg6
{[%clk 0:00:05.5]} 39. Ng3 {[%clk 0:01:14.3]} 39... h6 {[%clk 0:00:03.3]} 40.
Nf5 {[%clk 0:01:13.2]} 1-0

[Event "*** MasterClass Titled Tuesday Blitz"]
[Site "Chess.com"]
[Date "2017.10.03"]
[Round "1"]
[White "oskariot"]
[Black "visa"]
[Result "1-0"]
[WhiteElo "2495"]
[BlackElo "2179"]
[TimeControl "180+2"]
[EndTime "13:08:23 PDT"]
[Termination "oskariot won on time"]

1. e4 {[%clk 0:03:01.9]} 1... d6 {[%clk 0:03:00.9]} 2. d4 {[%clk 0:03:02.3]}
2... Nf6 {[%clk 0:03:01.6]} 3. Nc3 {[%clk 0:03:04]} 3... Nbd7 {[%clk 0:03:02.2]}
4. Nge2 {[%clk 0:03:01.4]} 4... e5 {[%clk 0:03:02.9]} 5. g3 {[%clk 0:03:02.9]}
5... c6 {[%clk 0:03:03.6]} 6. Bg2 {[%clk 0:03:04.3]} 6... Be7 {[%clk 0:03:04.8]}
7. a4 {[%clk 0:03:05.1]} 7... a5 {[%clk 0:03:05.2]} 8. O-O {[%clk 0:03:06.4]}
8... Qc7 {[%clk 0:03:05.9]} 9. h3 {[%clk 0:03:07.8]} 9... O-O {[%clk 0:03:06.1]}
10. g4 {[%clk 0:03:09.2]} 10... Nb6 {[%clk 0:03:04.7]} 11. b3 {[%clk 0:03:02.4]}
11... d5 {[%clk 0:02:49.1]} 12. dxe5 {[%clk 0:02:37]} 12... Nxe4 {[%clk
0:02:49.2]} 13. Nxe4 {[%clk 0:02:37.9]} 13... dxe4 {[%clk 0:02:49.9]} 14. Qd4
{[%clk 0:02:32.7]} 14... f5 {[%clk 0:02:31.3]} 15. g5 {[%clk 0:01:43.9]} 15...
Qd8 {[%clk 0:01:44]} 16. Qxd8 {[%clk 0:01:22.2]} 16... Rxd8 {[%clk 0:01:35.4]}
17. c4 {[%clk 0:01:12.3]} 17... Be6 {[%clk 0:01:23.2]} 18. Be3 {[%clk
0:01:02.1]} 18... Nd7 {[%clk 0:01:19]} 19. Bf4 {[%clk 0:00:42.8]} 19... b5
{[%clk 0:01:07.4]} 20. Nd4 {[%clk 0:00:39.9]} 20... Nc5 {[%clk 0:00:38.1]} 21.
Nxc6 {[%clk 0:00:40.4]} 21... Rd7 {[%clk 0:00:24.4]} 22. cxb5 {[%clk 0:00:34.2]}
22... Nxb3 {[%clk 0:00:23.2]} 23. Rad1 {[%clk 0:00:28.4]} 23... Bc5 {[%clk
0:00:21]} 24. Be3 {[%clk 0:00:24.1]} 24... Bxe3 {[%clk 0:00:21]} 25. fxe3 {[%clk
0:00:25.6]} 25... Kf7 {[%clk 0:00:16.3]} 26. Rd6 {[%clk 0:00:21.2]} 26... Rxd6
{[%clk 0:00:14.7]} 27. exd6 {[%clk 0:00:22.4]} 27... g6 {[%clk 0:00:15.3]} 28.
Rd1 {[%clk 0:00:23.3]} 28... Nc5 {[%clk 0:00:13.4]} 29. b6 {[%clk 0:00:24.1]}
29... Bd7 {[%clk 0:00:11.4]} 30. Rc1 {[%clk 0:00:19.8]} 30... Nxa4 {[%clk
0:00:11.5]} 31. b7 {[%clk 0:00:20.4]} 31... Re8 {[%clk 0:00:06.5]} 32. b8=Q
{[%clk 0:00:19.4]} 32... Bxc6 {[%clk 0:00:02.9]} 33. Qc7+ {[%clk 0:00:19]} 1-0

[Event "*** MasterClass Titled Tuesday Blitz"]
[Site "Chess.com"]
[Date "2017.10.03"]
[Round "1"]
[White "Robin-Side"]
[Black "lukas_111111"]
[Result "0-1"]
[WhiteElo "2598"]
[BlackElo "2339"]
[TimeControl "180+2"]
[EndTime "13:08:39 PDT"]
[Termination "lukas_111111 won by resignation"]

1. d4 {[%clk 0:03:01.3]} 1... Nf6 {[%clk 0:03:00.3]} 2. Nc3 {[%clk 0:03:02.7]}
2... d5 {[%clk 0:02:59]} 3. e4 {[%clk 0:03:01.9]} 3... dxe4 {[%clk 0:02:59.1]}
4. f3 {[%clk 0:03:03.2]} 4... exf3 {[%clk 0:02:53.9]} 5. Nxf3 {[%clk 0:03:05.1]}
5... e6 {[%clk 0:02:49.8]} 6. Bd3 {[%clk 0:03:03.8]} 6... c5 {[%clk 0:02:49.4]}
7. dxc5 {[%clk 0:03:03]} 7... Bxc5 {[%clk 0:02:49.6]} 8. Qe2 {[%clk 0:03:04]}
8... Nc6 {[%clk 0:02:46.6]} 9. Bg5 {[%clk 0:03:04.1]} 9... h6 {[%clk 0:02:47]}
10. Bh4 {[%clk 0:03:04.7]} 10... g5 {[%clk 0:02:47.1]} 11. Bg3 {[%clk
0:03:04.1]} 11... Nh5 {[%clk 0:02:07]} 12. Be5 {[%clk 0:02:17.3]} 12... Nf4
{[%clk 0:01:56.6]} 13. Bxf4 {[%clk 0:02:18.3]} 13... gxf4 {[%clk 0:01:57]} 14.
O-O-O {[%clk 0:02:19.9]} 14... Bd7 {[%clk 0:01:55.6]} 15. Ne4 {[%clk 0:02:12.4]}
15... Be3+ {[%clk 0:01:55.5]} 16. Kb1 {[%clk 0:02:13.9]} 16... Qe7 {[%clk
0:01:53.4]} 17. Nfd2 {[%clk 0:02:01]} 17... Bxd2 {[%clk 0:01:42]} 18. Qxd2
{[%clk 0:01:59.5]} 18... e5 {[%clk 0:01:35.4]} 19. Bc4 {[%clk 0:01:54.3]} 19...
O-O-O {[%clk 0:01:12.2]} 20. Nd6+ {[%clk 0:01:54.9]} 20... Kb8 {[%clk
0:01:02.7]} 21. Nxf7 {[%clk 0:01:54.7]} 21... Bg4 {[%clk 0:01:03.5]} 22. Nxd8
{[%clk 0:01:45.5]} 22... Rxd8 {[%clk 0:01:03.1]} 23. Qc1 {[%clk 0:01:44.4]}
23... Bxd1 {[%clk 0:01:02.6]} 24. Rxd1 {[%clk 0:01:46.3]} 24... Rxd1 {[%clk
0:01:01]} 25. Qxd1 {[%clk 0:01:48.2]} 25... e4 {[%clk 0:00:57.8]} 26. Qf1 {[%clk
0:01:36.3]} 26... Qe5 {[%clk 0:00:50.7]} 27. a3 {[%clk 0:01:36.7]} 27... a6
{[%clk 0:00:47.9]} 28. c3 {[%clk 0:00:52.4]} 28... Ne7 {[%clk 0:00:37.3]} 29.
Qd1 {[%clk 0:00:48.8]} 29... Kc7 {[%clk 0:00:35.4]} 30. Kc2 {[%clk 0:00:45.4]}
30... Nf5 {[%clk 0:00:35.1]} 31. Qe2 {[%clk 0:00:25.7]} 31... Ne3+ {[%clk
0:00:35.3]} 32. Kc1 {[%clk 0:00:23.9]} 32... Qg5 {[%clk 0:00:35.4]} 33. Kb1
{[%clk 0:00:12.7]} 33... Qxg2 {[%clk 0:00:32.9]} 34. Qxg2 {[%clk 0:00:05.4]}
34... Nxg2 {[%clk 0:00:33.1]} 35. Bd5 {[%clk 0:00:07.3]} 35... e3 {[%clk
0:00:28]} 36. Bf3 {[%clk 0:00:08.6]} 36... Ne1 {[%clk 0:00:22]} 37. Bh5 {[%clk
0:00:08.6]} 37... f3 {[%clk 0:00:22.5]} 38. Kc1 {[%clk 0:00:09.8]} 38... Nd3+
{[%clk 0:00:21.1]} 39. Kd1 {[%clk 0:00:10.7]} 39... e2+ {[%clk 0:00:22.1]} 40.
Kd2 {[%clk 0:00:11.5]} 0-1

[Event "*** MasterClass Titled Tuesday Blitz"]
[Site "Chess.com"]
[Date "2017.10.03"]
[Round "1"]
[White "Fandorine"]
[Black "Jungle_Jaguar"]
[Result "1-0"]
[WhiteElo "2652"]
[BlackElo "2365"]
[TimeControl "180+2"]
[EndTime "13:09:07 PDT"]
[Termination "Fandorine won by resignation"]

1. e4 {[%clk 0:02:58.9]} 1... c5 {[%clk 0:03:00.9]} 2. Nf3 {[%clk 0:02:59.6]}
2... d6 {[%clk 0:03:02.3]} 3. Nc3 {[%clk 0:03:00.2]} 3... Nc6 {[%clk 0:03:02.8]}
4. Bb5 {[%clk 0:02:57]} 4... Bd7 {[%clk 0:03:01]} 5. Bxc6 {[%clk 0:02:58.1]}
5... Bxc6 {[%clk 0:03:01.5]} 6. d4 {[%clk 0:02:59.7]} 6... cxd4 {[%clk
0:03:02.5]} 7. Qxd4 {[%clk 0:03:00]} 7... Nf6 {[%clk 0:03:02.1]} 8. Bg5 {[%clk
0:03:01.1]} 8... e5 {[%clk 0:02:58.5]} 9. Qd3 {[%clk 0:02:59.3]} 9... h6 {[%clk
0:02:59.1]} 10. Bxf6 {[%clk 0:03:00.3]} 10... Qxf6 {[%clk 0:02:59.8]} 11. Nd5
{[%clk 0:03:01.9]} 11... Bxd5 {[%clk 0:02:52.4]} 12. Qxd5 {[%clk 0:03:02.6]}
12... Rb8 {[%clk 0:02:46]} 13. Qb5+ {[%clk 0:03:02.2]} 13... Ke7 {[%clk
0:02:39.1]} 14. Nd2 {[%clk 0:03:03]} 14... Qg5 {[%clk 0:02:27.3]} 15. g3 {[%clk
0:02:54.8]} 15... Kf6 {[%clk 0:02:19.3]} 16. Nc4 {[%clk 0:02:48.8]} 16... Be7
{[%clk 0:02:18.5]} 17. Ne3 {[%clk 0:02:44.4]} 17... Kg6 {[%clk 0:02:16.9]} 18.
h4 {[%clk 0:02:34.4]} 18... Qf6 {[%clk 0:02:13.3]} 19. Nd5 {[%clk 0:02:26.5]}
19... Qe6 {[%clk 0:02:14.1]} 20. Qe2 {[%clk 0:02:16]} 20... Rhc8 {[%clk
0:02:11.8]} 21. c3 {[%clk 0:02:14.4]} 21... Kh7 {[%clk 0:02:08.6]} 22. Rd1
{[%clk 0:02:11.1]} 22... b5 {[%clk 0:02:08.4]} 23. a3 {[%clk 0:02:10.8]} 23...
a5 {[%clk 0:02:07.1]} 24. O-O {[%clk 0:02:11.7]} 24... Rc4 {[%clk 0:01:55.1]}
25. Qf3 {[%clk 0:02:11.2]} 25... Bd8 {[%clk 0:01:44.3]} 26. Kg2 {[%clk
0:02:08.9]} 26... Qg6 {[%clk 0:01:43.6]} 27. Ne3 {[%clk 0:01:58.8]} 27... Rc6
{[%clk 0:01:28.3]} 28. h5 {[%clk 0:01:59.3]} 28... Qe6 {[%clk 0:01:27.6]} 29.
Nd5 {[%clk 0:01:57.4]} 29... Bg5 {[%clk 0:01:23.4]} 30. Rd3 {[%clk 0:01:52]}
30... Rf8 {[%clk 0:01:24.2]} 31. Rfd1 {[%clk 0:01:52.2]} 31... f5 {[%clk
0:01:24.9]} 32. exf5 {[%clk 0:01:53.4]} 32... Rxf5 {[%clk 0:01:25.9]} 33. Qe4
{[%clk 0:01:54.9]} 33... Kh8 {[%clk 0:01:23.6]} 34. Nf4 {[%clk 0:01:49.7]} 34...
Bxf4 {[%clk 0:01:22.8]} 35. Qxc6 {[%clk 0:01:50.5]} 35... e4 {[%clk 0:01:13.9]}
36. Rxd6 {[%clk 0:01:31.3]} 36... Bxd6 {[%clk 0:01:09.3]} 37. Rxd6 {[%clk
0:01:33.2]} 37... Qf7 {[%clk 0:01:05.5]} 38. Rd8+ {[%clk 0:01:28.7]} 38... Kh7
{[%clk 0:01:06.6]} 39. Qxe4 {[%clk 0:01:30.2]} 39... g6 {[%clk 0:01:00.8]} 40.
hxg6+ {[%clk 0:01:29.6]} 40... Qxg6 {[%clk 0:01:01.8]} 41. Rd7+ {[%clk
0:01:29.9]} 41... Kg8 {[%clk 0:01:00.5]} 42. Qa8+ {[%clk 0:01:14.4]} 42... Rf8
{[%clk 0:01:00.5]} 43. Qd5+ {[%clk 0:01:15.9]} 43... Kh8 {[%clk 0:00:50.4]} 44.
Rd6 {[%clk 0:01:06.3]} 44... Qg7 {[%clk 0:00:44]} 45. Qd4 {[%clk 0:01:03.5]}
45... Qxd4 {[%clk 0:00:43.1]} 46. Rxd4 {[%clk 0:01:04.7]} 46... Rb8 {[%clk
0:00:41.6]} 47. Rd5 {[%clk 0:01:05]} 47... Kg7 {[%clk 0:00:38.5]} 48. b4 {[%clk
0:01:05.8]} 48... axb4 {[%clk 0:00:38.9]} 49. axb4 {[%clk 0:01:07.4]} 49... Kf6
{[%clk 0:00:38.3]} 50. Rc5 {[%clk 0:01:06.6]} 50... Rb6 {[%clk 0:00:38.3]} 51.
Kh3 {[%clk 0:01:06.9]} 51... Kg6 {[%clk 0:00:39.1]} 52. f4 {[%clk 0:01:07.1]}
52... Kf6 {[%clk 0:00:38.5]} 53. Kg4 {[%clk 0:01:05.7]} 53... Kg6 {[%clk
0:00:39.5]} 54. f5+ {[%clk 0:01:06.3]} 54... Kg7 {[%clk 0:00:35]} 55. Kf4 {[%clk
0:01:06.9]} 55... Kf6 {[%clk 0:00:35.8]} 56. g4 {[%clk 0:01:05]} 56... Rb7
{[%clk 0:00:32.1]} 57. Rc6+ {[%clk 0:01:05.7]} 57... Kf7 {[%clk 0:00:33.4]} 58.
Rxh6 {[%clk 0:01:04.6]} 58... Kg7 {[%clk 0:00:33.4]} 59. Rc6 {[%clk 0:01:03.3]}
59... Re7 {[%clk 0:00:34.1]} 60. f6+ {[%clk 0:01:04.2]} 1-0

[Event "*** MasterClass Titled Tuesday Blitz"]
[Site "Chess.com"]
[Date "2017.10.03"]
[Round "1"]
[White "Aikiigm"]
[Black "pandamaster3000"]
[Result "0-1"]
[WhiteElo "2437"]
[BlackElo "2149"]
[TimeControl "180+2"]
[EndTime "13:09:25 PDT"]
[Termination "pandamaster3000 won by resignation"]

1. e4 {[%clk 0:02:52.7]} 1... e6 {[%clk 0:03:00.1]} 2. d4 {[%clk 0:02:51.8]}
2... d5 {[%clk 0:03:01.6]} 3. Nc3 {[%clk 0:02:51.3]} 3... dxe4 {[%clk
0:03:01.8]} 4. Nxe4 {[%clk 0:02:51.3]} 4... Bd7 {[%clk 0:03:03.3]} 5. Nf3 {[%clk
0:02:50.3]} 5... Bc6 {[%clk 0:03:02.8]} 6. Bd3 {[%clk 0:02:49.4]} 6... Nd7
{[%clk 0:03:03.2]} 7. Qe2 {[%clk 0:02:48.8]} 7... Ngf6 {[%clk 0:03:04]} 8. Bg5
{[%clk 0:02:48.1]} 8... Be7 {[%clk 0:03:03.8]} 9. Nxf6+ {[%clk 0:02:46]} 9...
Nxf6 {[%clk 0:03:05.7]} 10. O-O-O {[%clk 0:02:44.8]} 10... Bxf3 {[%clk
0:02:31.2]} 11. Qxf3 {[%clk 0:02:42.9]} 11... Qd5 {[%clk 0:02:21.2]} 12. Qxd5
{[%clk 0:02:42.3]} 12... Nxd5 {[%clk 0:02:23.1]} 13. Bd2 {[%clk 0:02:41.4]}
13... O-O {[%clk 0:02:21.5]} 14. Rhe1 {[%clk 0:02:31.9]} 14... Rfd8 {[%clk
0:02:20.8]} 15. a3 {[%clk 0:02:32.2]} 15... c5 {[%clk 0:02:18.4]} 16. dxc5
{[%clk 0:02:31.8]} 16... Bxc5 {[%clk 0:02:20.3]} 17. Re2 {[%clk 0:02:29.2]}
17... Rac8 {[%clk 0:02:16.8]} 18. Kb1 {[%clk 0:02:21.2]} 18... Bd6 {[%clk
0:02:06.8]} 19. g3 {[%clk 0:02:20.9]} 19... h6 {[%clk 0:01:32.4]} 20. Ree1
{[%clk 0:02:15]} 20... Bf8 {[%clk 0:01:29.2]} 21. Be4 {[%clk 0:02:15.5]} 21...
b6 {[%clk 0:01:29]} 22. Bc1 {[%clk 0:02:14.9]} 22... Nf6 {[%clk 0:01:30.2]} 23.
Bf3 {[%clk 0:02:15]} 23... Bc5 {[%clk 0:01:30.9]} 24. Rxd8+ {[%clk 0:02:04.8]}
24... Rxd8 {[%clk 0:01:32.8]} 25. Rf1 {[%clk 0:02:05.2]} 25... Kf8 {[%clk
0:01:28.5]} 26. h3 {[%clk 0:02:04.9]} 26... Ke7 {[%clk 0:01:30]} 27. c3 {[%clk
0:02:01.1]} 27... Nd7 {[%clk 0:01:30.7]} 28. Kc2 {[%clk 0:02:00.9]} 28... Ne5
{[%clk 0:01:32.1]} 29. Be2 {[%clk 0:02:01.7]} 29... Nd7 {[%clk 0:01:23.6]} 30.
f4 {[%clk 0:01:59.6]} 30... Nf6 {[%clk 0:01:25.2]} 31. Bf3 {[%clk 0:01:58.8]}
31... Nd5 {[%clk 0:01:25.6]} 32. Bxd5 {[%clk 0:01:55.7]} 32... Rxd5 {[%clk
0:01:26]} 33. b4 {[%clk 0:01:53.9]} 33... Bd6 {[%clk 0:01:27.2]} 34. c4 {[%clk
0:01:52.7]} 34... Rh5 {[%clk 0:01:20.9]} 35. h4 {[%clk 0:01:52.3]} 35... e5
{[%clk 0:01:14.6]} 36. f5 {[%clk 0:01:51.4]} 36... Kf6 {[%clk 0:01:10.8]} 37.
Rd1 {[%clk 0:01:33.8]} 37... Ke7 {[%clk 0:01:09.5]} 38. Rf1 {[%clk 0:01:31.9]}
38... Kf6 {[%clk 0:01:09.7]} 39. Rd1 {[%clk 0:01:31.4]} 39... Ke7 {[%clk
0:01:10.8]} 40. Rd5 {[%clk 0:01:30]} 40... Rxf5 {[%clk 0:01:08.7]} 41. c5 {[%clk
0:01:30.5]} 41... bxc5 {[%clk 0:01:10.6]} 42. bxc5 {[%clk 0:01:30.8]} 42... Bb8
{[%clk 0:01:06.1]} 43. c6 {[%clk 0:01:31.5]} 43... Rf2+ {[%clk 0:01:06.9]} 44.
Bd2 {[%clk 0:01:29.3]} 44... e4 {[%clk 0:00:59.8]} 45. Rd7+ {[%clk 0:01:29.8]}
45... Ke6 {[%clk 0:01:01.1]} 46. Kd1 {[%clk 0:01:29.7]} 46... Bxg3 {[%clk
0:00:52.9]} 47. Rd4 {[%clk 0:01:27.4]} 47... f5 {[%clk 0:00:48.7]} 48. Rd8
{[%clk 0:01:16.4]} 48... Rf3 {[%clk 0:00:45.6]} 49. Bb4 {[%clk 0:01:12.3]} 49...
Rd3+ {[%clk 0:00:42.9]} 50. Rxd3 {[%clk 0:01:11.2]} 50... exd3 {[%clk
0:00:44.8]} 51. h5 {[%clk 0:01:11.7]} 51... Kd5 {[%clk 0:00:45.5]} 52. Bc3
{[%clk 0:01:11.5]} 52... Kxc6 {[%clk 0:00:44]} 53. Bxg7 {[%clk 0:01:13.4]} 53...
Bf4 {[%clk 0:00:45.5]} 54. Bd4 {[%clk 0:01:14.1]} 54... a6 {[%clk 0:00:44.6]}
55. a4 {[%clk 0:01:14.2]} 55... Kd5 {[%clk 0:00:45.1]} 0-1

[Event "*** MasterClass Titled Tuesday Blitz"]
[Site "Chess.com"]
[Date "2017.10.03"]
[Round "1"]
[White "Hrant_ChessMood"]
[Black "Zufi1811"]
[Result "1/2-1/2"]
[WhiteElo "2749"]
[BlackElo "2416"]
[TimeControl "180+2"]
[EndTime "13:09:28 PDT"]
[Termination "Game drawn by agreement"]

1. Nf3 {[%clk 0:02:59.5]} 1... d5 {[%clk 0:03:00.3]} 2. g3 {[%clk 0:03:00.5]}
2... g6 {[%clk 0:02:59.8]} 3. Bg2 {[%clk 0:03:01.4]} 3... Bg7 {[%clk 0:03:01.3]}
4. d4 {[%clk 0:03:03]} 4... Nh6 {[%clk 0:02:56.8]} 5. O-O {[%clk 0:03:03.9]}
5... Nf5 {[%clk 0:02:57.4]} 6. c3 {[%clk 0:03:03.8]} 6... O-O {[%clk 0:02:58.2]}
7. Nbd2 {[%clk 0:03:05.4]} 7... c6 {[%clk 0:02:59.3]} 8. e4 {[%clk 0:03:06.4]}
8... dxe4 {[%clk 0:02:59.6]} 9. Nxe4 {[%clk 0:03:08.3]} 9... Nd7 {[%clk
0:03:00.6]} 10. Re1 {[%clk 0:03:09.7]} 10... Nf6 {[%clk 0:03:01.2]} 11. Nxf6+
{[%clk 0:03:05]} 11... Bxf6 {[%clk 0:03:03.1]} 12. Bf4 {[%clk 0:03:06.3]} 12...
Nd6 {[%clk 0:02:56.2]} 13. Qe2 {[%clk 0:03:06.6]} 13... Bg4 {[%clk 0:02:52.7]}
14. h3 {[%clk 0:03:07.6]} 14... Bxf3 {[%clk 0:02:53.8]} 15. Bxf3 {[%clk
0:03:09.5]} 15... Re8 {[%clk 0:02:51.8]} 16. Kg2 {[%clk 0:03:09.1]} 16... e6
{[%clk 0:02:49.1]} 17. h4 {[%clk 0:03:09.7]} 17... h5 {[%clk 0:02:48.4]} 18. a4
{[%clk 0:03:10.7]} 18... a5 {[%clk 0:02:48.1]} 19. Qc2 {[%clk 0:03:10.7]} 19...
Kg7 {[%clk 0:02:47.6]} 20. Re2 {[%clk 0:03:12.1]} 20... Nc8 {[%clk 0:02:36.3]}
21. Rae1 {[%clk 0:03:09.8]} 21... Ne7 {[%clk 0:02:37.2]} 22. Bc1 {[%clk
0:02:54.1]} 22... Nd5 {[%clk 0:02:36.7]} 23. Qd2 {[%clk 0:02:50.8]} 23... Kg8
{[%clk 0:02:28.9]} 24. Qc2 {[%clk 0:02:47.6]} 24... Kg7 {[%clk 0:02:28.4]} 25.
Rh1 {[%clk 0:02:47.8]} 25... Qd6 {[%clk 0:02:23.4]} 26. Qd1 {[%clk 0:02:44.1]}
26... Re7 {[%clk 0:02:18.8]} 27. Re4 {[%clk 0:02:41.2]} 27... Rae8 {[%clk
0:02:19.1]} 28. c4 {[%clk 0:02:35.9]} 28... Nb4 {[%clk 0:02:16]} 29. Bf4 {[%clk
0:02:35.3]} 29... Qd7 {[%clk 0:02:13.8]} 30. g4 {[%clk 0:02:35.7]} 30... hxg4
{[%clk 0:02:14.1]} 31. Bxg4 {[%clk 0:02:37]} 31... Rh8 {[%clk 0:02:14.7]} 32. h5
{[%clk 0:02:37.6]} 32... gxh5 {[%clk 0:02:15.3]} 33. Rxh5 {[%clk 0:02:34.4]}
33... Ree8 {[%clk 0:02:13.2]} 34. Be3 {[%clk 0:02:22]} 34... Reg8 {[%clk
0:02:11.7]} 35. Rxh8 {[%clk 0:02:19.8]} 35... Rxh8 {[%clk 0:02:09.5]} 36. Qf3
{[%clk 0:02:18.4]} 36... Nc2 {[%clk 0:01:55.7]} 37. Qg3 {[%clk 0:02:04.1]} 37...
Nxe3+ {[%clk 0:01:48.5]} 38. fxe3 {[%clk 0:02:06]} 38... Kf8 {[%clk 0:01:45.1]}
39. Qf3 {[%clk 0:02:04]} 39... Rh6 {[%clk 0:01:38.5]} 40. Qf4 {[%clk 0:01:54.4]}
40... Kg7 {[%clk 0:01:35.9]} 41. Bf3 {[%clk 0:01:24.8]} 41... Rg6+ {[%clk
0:01:29.5]} 42. Kf1 {[%clk 0:01:25.7]} 42... Qd8 {[%clk 0:01:30]} 43. Qh2 {[%clk
0:01:18.3]} 43... Qb6 {[%clk 0:01:23.5]} 44. Qc2 {[%clk 0:01:10.4]} 44... Qc7
{[%clk 0:01:20.8]} 45. Rg4 {[%clk 0:01:03.2]} 45... Rxg4 {[%clk 0:01:17.5]} 46.
Bxg4 {[%clk 0:01:05.1]} 46... Qg3 {[%clk 0:01:18.6]} 47. Qe2 {[%clk 0:01:03]}
47... Bg5 {[%clk 0:01:17.9]} 48. Bf3 {[%clk 0:01:02.8]} 48... Bh4 {[%clk
0:01:04.6]} 49. c5 {[%clk 0:00:55.3]} 49... Qh3+ {[%clk 0:01:00.2]} 50. Qg2+
{[%clk 0:00:51.4]} 50... Qxg2+ {[%clk 0:01:01]} 51. Bxg2 {[%clk 0:00:53.3]}
51... Kf6 {[%clk 0:00:54.3]} 52. Ke2 {[%clk 0:00:54]} 52... Ke7 {[%clk
0:00:54.9]} 53. Kd3 {[%clk 0:00:54.6]} 53... Bf2 {[%clk 0:00:53.1]} 54. Bf3
{[%clk 0:00:49.7]} 54... Kd7 {[%clk 0:00:53.1]} 55. Bh5 {[%clk 0:00:47.8]} 55...
f6 {[%clk 0:00:53.6]} 56. Bg6 {[%clk 0:00:43.6]} 56... Ke7 {[%clk 0:00:53]} 57.
e4 {[%clk 0:00:44.4]} 57... e5 {[%clk 0:00:46]} 58. dxe5 {[%clk 0:00:38.9]}
58... fxe5 {[%clk 0:00:47.9]} 59. Kc4 {[%clk 0:00:39.9]} 59... Kd8 {[%clk
0:00:47.8]} 60. Bf5 {[%clk 0:00:39.6]} 60... Kc7 {[%clk 0:00:47.6]} 61. b4
{[%clk 0:00:40]} 61... axb4 {[%clk 0:00:47.4]} 62. Kxb4 {[%clk 0:00:41.9]} 62...
Bg1 {[%clk 0:00:48.1]} 63. Kc4 {[%clk 0:00:42]} 63... Bd4 {[%clk 0:00:50]} 64.
Bg4 {[%clk 0:00:39.5]} 1/2-1/2